bitfinex/quotes_SOLUSD_20220311
["timestamp","ask_amount","ask_price","bid_price","bid_amount"]
[1647008203225,22.9847,82.659,82.61,18.1464]
[1647008203424,22.9847,82.659,82.611,63.61322027]
[1647008204826,22.9847,82.659,82.61,18.1464]
[1647008205730,22.9847,82.659,82.611,65.89293708]
[1647008208734,22.9847,82.659,82.602,25.53204778]
[1647008209934,22.9847,82.659,82.603,54.40461053]
[1647008210135,22.9847,82.659,82.61,18.1495]
[1647008210839,22.9847,82.659,82.603,54.40461053]
[1647008211042,18.1518,82.65,82.603,54.40461053]
[1647008212255,18.1518,82.65,82.602,25.53204778]
[1647008212455,22.9404,82.649,82.6,18.151]
[1647008213258,22.8256,82.669,82.601,76.04495154]
[1647008213462,22.9404,82.668,82.62,18.1457]
[1647008214461,120.8,82.667,82.61,18.1491]
[1647008215963,18.1495,82.66,82.61,18.1491]
[1647008216362,22.9404,82.668,82.61,18.1491]
[1647008216562,22.9404,82.668,82.611,25.52338111]
[1647008216760,22.9404,82.668,82.62,18.1434]
[1647008220873,120.8,82.688,82.62,18.1434]
[1647008221078,120.8,82.686,82.62,43.66678111]
[1647008221875,120.8,82.686,82.62,18.1434]
[1647008223080,120.8,82.679,82.62,18.1434]
[1647008224377,120.8,82.686,82.62,18.1434]
[1647008224579,18.148,82.67,82.61,18.1491]
[1647008224779,144.1329,82.669,82.61,18.1491]
[1647008225279,144.1329,82.669,82.602,23.7626]
[1647008225783,18.1497,82.66,82.602,23.7626]
[1647008226182,120.8,82.659,82.602,23.7626]
[1647008226379,120.8,82.659,82.601,50.52157043]
[1647008226579,120.8,82.657,82.601,50.52157043]
[1647008227783,120.8,82.657,82.602,25.52338111]
[1647008227982,23.89,82.658,82.602,25.52338111]
[1647008228383,120.8,82.657,82.61,18.15]
[1647008228984,120.8,82.657,82.588,23.9522]
[1647008230388,3.04447957,82.656,82.588,23.9522]
[1647008231184,120.8,82.649,82.59,18.1537]
[1647008231390,120.8,82.649,82.562,25.52338111]
[1647008231588,120.8,82.647,82.563,6.0]
[1647008231786,120.8,82.647,82.562,49.20898111]
[1647008233188,120.8,82.629,82.57,18.1588]
[1647008233389,120.8,82.627,82.57,18.1588]
[1647008233589,120.8,82.627,82.57,43.68218111]
[1647008234189,120.8,82.627,82.57,18.1588]
[1647008235089,18.1585,82.62,82.57,18.1588]
[1647008235490,22.7084,82.628,82.571,25.52338111]
[1647008235690,22.7084,82.628,82.58,18.1555]
[1647008236090,22.7084,82.628,82.58,78.3420423]
[1647008236792,22.7084,82.628,82.58,18.1555]
[1647008237092,120.8,82.627,82.58,18.1555]
[1647008237290,120.8,82.627,82.57,18.1595]
[1647008237890,120.8,82.619,82.57,18.1595]
[1647008238093,120.8,82.617,82.57,18.1595]
[1647008238692,24.5774,82.618,82.57,18.1595]
[1647008238896,24.5774,82.618,82.571,6.0]
[1647008239098,24.5774,82.618,82.57,18.1595]
[1647008244407,24.5774,82.618,82.57,43.68288111]
[1647008250733,18.1556,82.64,82.57,43.68288111]
[1647008250935,24.2512,82.639,82.57,43.68288111]
[1647008254140,120.8,82.638,82.57,18.1595]
[1647008254537,120.8,82.638,82.57,43.68288111]
[1647008257444,120.8,82.629,82.57,43.68288111]
[1647008257646,120.8,82.627,82.57,43.68288111]
[1647008259144,18.1593,82.62,82.57,43.68288111]
[1647008259344,120.8,82.627,82.57,43.68288111]
[1647008260347,120.8,82.627,82.57,18.1595]
[1647008260547,120.8,82.627,82.56,18.1614]
[1647008261952,120.8,82.619,82.56,18.1614]
[1647008262351,120.8,82.619,82.561,25.52338111]
[1647008262552,120.8,82.617,82.57,18.1587]
[1647008262757,24.4685,82.618,82.57,18.1587]
[1647008263153,120.8,82.617,82.57,18.1587]
[1647008263352,120.8,82.617,82.561,25.52338111]
[1647008263554,120.8,82.617,82.553,24.0237]
[1647008263755,120.8,82.617,82.562,25.52338111]
[1647008264378,120.8,82.609,82.562,25.52338111]
[1647008264777,120.8,82.607,82.562,25.52338111]
[1647008265178,24.4685,82.608,82.562,25.52338111]
[1647008265379,24.4685,82.608,82.57,18.1596]
[1647008266180,24.4685,82.608,82.57,43.68298111]
[1647008267982,24.4685,82.608,82.571,6.0]
[1647008268278,24.4685,82.608,82.58,18.1568]
[1647008268478,24.4685,82.608,82.582,58.28128853]
[1647008268681,24.4685,82.608,82.583,6.0]
[1647008268881,24.4685,82.608,82.581,6.0]
[1647008269280,130.05661552,82.63,82.581,6.0]
[1647008269481,23.8975,82.629,82.581,6.0]
[1647008272188,120.8,82.628,82.581,6.0]
[1647008272489,120.8,82.619,82.57,18.1593]
[1647008272687,18.159,82.62,82.57,18.1593]
[1647008273291,23.2315,82.619,82.571,49.57860944]
[1647008275392,23.2315,82.619,82.58,18.1574]
[1647008276694,130.05661552,82.63,82.58,18.1574]
[1647008276894,23.6496,82.647,82.58,18.1574]
[1647008277394,23.6496,82.647,82.6,18.1485]
[1647008277595,23.6496,82.647,82.601,57.47083313]
[1647008278901,3.04447957,82.679,82.61,18.1495]
[1647008279100,23.5688,82.678,82.61,18.1495]
[1647008279300,23.5688,82.678,82.611,22.6155]
[1647008280301,23.5688,82.678,82.63,18.1437]
[1647008283410,109.76782397,82.71,82.63,18.1437]
[1647008283607,23.6054,82.709,82.63,18.1437]
[1647008283809,23.6054,82.709,82.631,25.52338111]
[1647008284008,23.6054,82.709,82.651,65.43503682]
[1647008285209,23.928,82.718,82.651,109.01891793]
[1647008285415,23.928,82.718,82.66,18.1377]
[1647008286111,120.8,82.717,82.66,18.1377]
[1647008286310,18.1389,82.71,82.66,18.1377]
[1647008286512,22.8031,82.717,82.66,18.1377]
[1647008293320,120.8,82.716,82.66,18.1377]
[1647008293517,120.8,82.716,82.652,22.9554]
[1647008295217,18.1392,82.71,82.66,18.1387]
[1647008300555,120.8,82.709,82.636,25.52338111]
[1647008300754,18.1441,82.69,82.636,25.52338111]
[1647008301059,18.1441,82.69,82.629,24.4207]
[1647008301655,23.5331,82.689,82.629,49.94408111]
[1647008302255,23.5331,82.689,82.64,18.1432]
[1647008304358,120.8,82.688,82.64,18.1432]
[1647008304558,23.5331,82.689,82.64,18.1432]
[1647008304958,23.5331,82.689,82.641,25.52338111]
[1647008305360,23.5331,82.689,82.65,18.1415]
[1647008305559,23.5331,82.689,82.651,48.89630413]
[1647008305759,23.5331,82.689,82.651,74.41968524]
[1647008305958,23.5331,82.689,82.651,25.52338111]
[1647008306362,23.928,82.718,82.639,25.52338111]
[1647008306559,24.5892,82.717,82.66,18.1392]
[1647008307764,120.8,82.716,82.66,18.1392]
[1647008307965,24.5892,82.717,82.66,18.1392]
[1647008311371,120.8,82.716,82.66,18.1392]
[1647008312172,120.8,82.709,82.66,18.1392]
[1647008312975,120.8,82.709,82.63,3.04447957]
[1647008313171,24.5892,82.717,82.63,3.04447957]
[1647008313172,120.8,82.716,82.631,30.1076]
[1647008313373,120.8,82.699,82.632,3.04447957]
[1647008313672,120.8,82.697,82.633,6.0]
[1647008314077,120.8,82.697,82.64,18.1437]
[1647008314276,120.8,82.697,82.641,6.0]
[1647008314874,120.8,82.697,82.636,6.0]
[1647008315075,120.8,82.697,82.65,18.1408]
[1647008315274,120.8,82.697,82.651,6.0]
[1647008315975,22.7471,82.698,82.651,6.0]
[1647008316177,22.7471,82.698,82.66,18.139]
[1647008317194,23.928,82.718,82.66,18.139]
[1647008317598,23.928,82.718,82.66,44.12960111]
[1647008318397,23.928,82.718,82.66,18.139]
[1647008318996,120.8,82.717,82.66,18.139]
[1647008319298,143.5119,82.717,82.66,18.139]
[1647008319494,18.1386,82.71,82.66,18.139]
[1647008321802,22.7119,82.717,82.66,18.139]
[1647008327506,1.62099687,82.74,82.661,129.84447957]
[1647008327706,7.0,82.791,82.661,129.84447957]
[1647008327707,1.62099687,82.771,82.68,18.1261]
[1647008327907,24.1724,82.773,82.682,59.78856461]
[1647008328104,24.1724,82.773,82.683,6.0]
[1647008328506,24.1724,82.773,82.683,37.32741402]
[1647008328705,24.1724,82.773,82.69,18.1223]
[1647008328908,24.1724,82.773,82.691,6.0]
[1647008329108,24.1724,82.773,82.692,24.3066]
[1647008329406,24.1724,82.773,82.693,6.0]
[1647008330007,120.8,82.769,82.7,18.1272]
[1647008330206,120.8,82.769,82.701,6.0]
[1647008330608,120.8,82.769,82.692,24.3066]
[1647008331009,120.8,82.769,82.7,18.1313]
[1647008331209,120.8,82.759,82.7,18.1313]
[1647008331407,120.8,82.757,82.7,18.1313]
[1647008334715,23.7265,82.758,82.701,28.28293445]
[1647008335017,120.8,82.757,82.71,18.1279]
[1647008336912,23.7265,82.758,82.71,18.1279]
[1647008337515,23.7265,82.758,82.692,24.3066]
[1647008337715,120.8,82.757,82.692,24.3066]
[1647008338915,23.7265,82.758,82.692,24.3066]
[1647008340417,120.8,82.757,82.692,24.3066]
[1647008341219,23.7265,82.758,82.692,24.3066]
[1647008341618,23.7265,82.758,82.693,31.02052735]
[1647008342020,23.7265,82.758,82.694,35.3359074]
[1647008342218,23.7265,82.758,82.694,63.31195518]
[1647008342422,23.7265,82.758,82.695,31.02052735]
[1647008342647,23.7265,82.758,82.696,6.0]
[1647008342819,23.7265,82.758,82.696,37.02052735]
[1647008343019,23.7265,82.758,82.697,3.04447957]
[1647008343219,23.7265,82.758,82.698,6.0]
[1647008344221,23.7265,82.758,82.699,3.04447957]
[1647008344420,23.7265,82.758,82.7,6.0]
[1647008346021,23.7265,82.758,82.693,6.0]
[1647008347625,23.7265,82.758,82.693,33.97604778]
[1647008347822,23.7265,82.758,82.694,26.29142783]
[1647008348024,23.7265,82.758,82.695,6.0]
[1647008348324,23.7265,82.758,82.696,26.29142783]
[1647008348525,23.7265,82.758,82.697,6.0]
[1647008348724,23.7265,82.758,82.697,37.02052735]
[1647008349825,23.7265,82.758,82.697,9.04447957]
[1647008353531,120.8,82.757,82.697,9.04447957]
[1647008353732,120.8,82.757,82.697,6.0]
[1647008353930,120.8,82.757,82.683,6.0]
[1647008354132,120.8,82.757,82.672,6.0]
[1647008354531,120.8,82.757,82.673,3.04447957]
[1647008354731,120.8,82.757,82.674,6.0]
[1647008355031,120.8,82.757,82.675,26.68327957]
[1647008355232,120.8,82.757,82.676,6.0]
[1647008355434,120.8,82.757,82.676,9.04447957]
[1647008355631,120.8,82.757,82.677,3.04447957]
[1647008355831,120.8,82.757,82.678,6.0]
[1647008356232,120.8,82.757,82.679,3.04447957]
[1647008356432,120.8,82.757,82.675,23.6388]
[1647008357033,120.8,82.757,82.676,27.97604778]
[1647008357232,120.8,82.757,82.676,31.02052735]
[1647008357433,120.8,82.757,82.677,3.04447957]
[1647008357656,120.8,82.757,82.677,31.02052735]
[1647008357856,120.8,82.757,82.678,27.97604778]
[1647008358059,120.8,82.757,82.678,31.02052735]
[1647008358258,120.8,82.757,82.679,3.04447957]
[1647008358459,120.8,82.757,82.679,31.02052735]
[1647008358660,120.8,82.757,82.68,27.97604778]
[1647008360762,120.8,82.757,82.675,23.6388]
[1647008361465,120.8,82.757,82.675,51.61484778]
[1647008362862,120.8,82.757,82.675,23.6388]
[1647008365967,120.8,82.757,82.676,3.04447957]
[1647008366369,23.7265,82.758,82.676,3.04447957]
[1647008366766,23.7265,82.758,82.676,29.2475074]
[1647008367667,23.7265,82.758,82.677,3.04447957]
[1647008368267,23.7265,82.758,82.68,18.1357]
[1647008368667,23.7265,82.758,82.681,3.04447957]
[1647008369367,23.7265,82.758,82.69,18.1301]
[1647008370168,120.8,82.757,82.69,18.1301]
[1647008370370,18.1304,82.75,82.69,18.1301]
[1647008371073,120.8,82.749,82.69,18.1301]
[1647008371269,123.84447957,82.749,82.675,23.6388]
[1647008371468,120.8,82.729,82.675,23.6388]
[1647008371669,120.8,82.727,82.675,23.6388]
[1647008372370,120.8,82.727,82.68,18.1356]
[1647008372770,120.8,82.719,82.68,18.1356]
[1647008373170,18.137,82.72,82.68,18.1356]
[1647008373372,23.6717,82.728,82.68,18.1356]
[1647008374172,120.8,82.727,82.68,18.1356]
[1647008375773,23.6717,82.728,82.68,18.1356]
[1647008376375,120.8,82.727,82.68,18.1356]
[1647008376977,120.8,82.719,82.68,18.1356]
[1647008377176,120.8,82.719,82.67,18.1374]
[1647008380582,120.8,82.709,82.634,17.8306]
[1647008380781,120.8,82.707,82.635,6.0]
[1647008381280,120.8,82.707,82.633,23.1353]
[1647008381683,127.49,82.707,82.633,23.1353]
[1647008382087,18.1442,82.69,82.64,18.1438]
[1647008382785,120.8,82.689,82.623,14.94129754]
[1647008382984,145.7627,82.689,82.612,3.04447957]
[1647008383185,145.7627,82.689,82.614,58.8167582]
[1647008384220,120.8,82.679,82.63,18.1459]
[1647008385416,18.1485,82.67,82.621,27.97554789]
[1647008385617,120.77559372,82.669,82.621,27.97554789]
[1647008386621,120.77559372,82.688,82.621,27.97554789]
[1647008386816,24.9627,82.689,82.621,27.97554789]
[1647008387815,24.9627,82.689,82.631,57.87039603]
[1647008389223,24.9627,82.689,82.64,18.1426]
[1647008390522,18.1459,82.68,82.631,27.97554789]
[1647008390721,18.1459,82.68,82.63,18.1463]
[1647008390722,120.8,82.679,82.63,18.1463]
[1647008391423,22.9097,82.678,82.63,18.1463]
[1647008391824,120.8,82.677,82.63,18.1463]
[1647008392022,22.9097,82.678,82.63,18.1463]
[1647008394124,22.9097,82.678,82.631,27.96688122]
[1647008394328,22.9097,82.678,82.64,18.1445]
[1647008403129,18.1414,82.7,82.641,54.87659385]
[1647008403329,144.0979,82.699,82.641,54.87659385]
[1647008403530,144.0979,82.699,82.65,18.1395]
[1647008404131,144.0979,82.699,82.65,46.10638122]
[1647008405031,23.2979,82.699,82.65,46.10638122]
[1647008405431,23.0073,82.707,82.65,46.10638122]
[1647008405631,23.0073,82.707,82.651,3.04447957]
[1647008405834,23.0073,82.707,82.66,18.1343]
[1647008406232,23.3183,82.73,82.661,27.96688122]
[1647008406432,41.4539,82.73,82.662,23.7006]
[1647008407934,41.4539,82.73,82.663,27.96688122]
[1647008408133,41.4539,82.73,82.67,18.1356]
[1647008408534,120.8,82.729,82.67,18.1356]
[1647008408737,120.8,82.719,82.651,3.04447957]
[1647008408936,120.8,82.717,82.652,6.0]
[1647008409135,120.8,82.717,82.649,18.216]
[1647008409335,120.8,82.717,82.648,27.96688122]
[1647008409538,120.8,82.717,82.65,27.96688122]
[1647008410161,18.1406,82.7,82.65,46.10788122]
[1647008410563,18.1406,82.7,82.651,27.96688122]
[1647008411163,23.7638,82.718,82.66,18.1388]
[1647008411564,23.7638,82.718,82.661,27.96688122]
[1647008412269,23.7638,82.718,82.65,60.4547]
[1647008413164,23.7638,82.718,82.65,88.42158122]
[1647008414064,18.139,82.71,82.65,88.42158122]
[1647008414265,18.139,82.71,82.66,18.139]
[1647008414770,23.7638,82.718,82.66,18.139]
[1647008416368,18.1384,82.71,82.66,18.139]
[1647008417770,23.7638,82.718,82.66,18.139]
[1647008420479,18.1389,82.71,82.66,18.139]
[1647008423481,23.7638,82.718,82.67,18.1348]
[1647008423679,23.7638,82.718,82.671,65.29071643]
[1647008424580,23.7638,82.718,82.661,27.96688122]
[1647008425586,18.139,82.71,82.661,84.24248879]
[1647008426785,23.7638,82.718,82.67,18.1375]
[1647008429714,120.8,82.717,82.662,23.8307]
[1647008429913,23.7638,82.718,82.662,23.8307]
[1647008430122,23.7638,82.718,82.662,51.79758122]
[1647008430314,1.62099687,82.739,82.663,64.50412816]
[1647008430618,1.62099687,82.751,82.664,37.01136079]
[1647008431015,1.62099687,82.751,82.67,18.1364]
[1647008431220,1.62099687,82.751,82.68,60.432]
[1647008431417,1.62099687,82.752,82.681,23.2956]
[1647008431617,1.62099687,82.753,82.681,23.2956]
[1647008431917,1.62099687,82.753,82.69,18.1296]
[1647008432116,1.62099687,82.754,82.691,63.02998549]
[1647008432318,1.62099687,82.756,82.691,90.99686671]
[1647008432518,1.62099687,82.756,82.692,27.96688122]
[1647008432716,1.62099687,82.757,82.692,27.96688122]
[1647008432916,22.7792,82.758,82.693,6.0]
[1647008432917,24.40019687,82.758,82.693,6.0]
[1647008433121,24.40019687,82.758,82.7,18.1246]
[1647008433519,22.7792,82.758,82.7,18.1246]
[1647008433718,22.7792,82.758,82.701,27.96688122]
[1647008433918,22.8404,82.785,82.701,27.96688122]
[1647008433919,1.62099687,82.771,82.702,120.8]
[1647008434118,1.62099687,82.787,82.71,18.1249]
[1647008434620,1.62099687,82.791,82.721,55.19028506]
[1647008434815,1.62099687,82.791,82.73,14.42]
[1647008435020,1.62099687,82.813,82.731,6.0]
[1647008435218,26.44359687,82.815,82.732,24.3094]
[1647008435621,18.1174,82.81,82.733,55.24005599]
[1647008436120,26.44359687,82.815,82.734,49.24005599]
[1647008436423,26.44359687,82.815,82.735,33.96688122]
[1647008436924,26.44359687,82.815,82.736,27.96688122]
[1647008437120,26.44359687,82.815,82.737,6.0]
[1647008437321,24.8226,82.815,82.737,27.27317477]
[1647008437521,3.24301735,82.843,82.737,27.27317477]
[1647008437522,1.62099687,82.83,82.75,14.42]
[1647008437724,1.62099687,82.847,82.752,50.0960646]
[1647008437927,1.62099687,82.861,82.753,121.05]
[1647008438125,1.62099687,82.865,82.755,120.8]
[1647008438322,1.62099687,82.868,82.77,18.1028]
[1647008438523,1.62099687,82.868,82.771,6.0]
[1647008438821,18.1075,82.86,82.771,6.0]
[1647008439022,1.62099687,82.868,82.771,9.04447957]
[1647008439222,1.62099687,82.867,82.772,3.04447957]
[1647008439421,120.8,82.86,82.773,6.0]
[1647008439622,18.1122,82.84,82.771,6.0]
[1647008439822,120.8,82.858,82.771,6.0]
[1647008440826,22.9948,82.859,82.771,6.0]
[1647008440827,120.8,82.839,82.771,6.0]
[1647008441323,120.8,82.839,82.761,6.0]
[1647008441522,120.8,82.837,82.761,6.0]
[1647008441927,120.8,82.837,82.78,18.1118]
[1647008442128,120.8,82.837,82.781,64.80305964]
[1647008442928,120.8,82.837,82.781,58.80305964]
[1647008443432,120.8,82.837,82.76,18.1146]
[1647008443628,120.8,82.837,82.761,6.0]
[1647008444229,120.8,82.837,82.754,6.0]
[1647008444429,120.8,82.837,82.755,47.84580492]
[1647008444634,120.8,82.837,82.77,18.1135]
[1647008446733,120.8,82.837,82.761,0.03]
[1647008446933,120.8,82.837,82.761,6.03]
[1647008447334,120.8,82.829,82.761,6.03]
[1647008447539,49.2073,82.838,82.762,6.0]
[1647008447734,120.8,82.837,82.761,0.03]
[1647008447934,120.8,82.837,82.761,25.31677609]
[1647008448136,120.8,82.837,82.762,6.0]
[1647008448536,120.8,82.837,82.761,25.31677609]
[1647008448935,120.8,82.837,82.762,6.0]
[1647008449137,120.8,82.837,82.761,25.31677609]
[1647008449438,120.8,82.829,82.763,25.28677609]
[1647008449638,120.8,82.829,82.761,0.03]
[1647008449843,120.8,82.827,82.761,0.03]
[1647008450438,120.8,82.825,82.761,0.03]
[1647008450642,120.8,82.809,82.761,0.03]
[1647008450838,120.8,82.807,82.761,0.03]
[1647008451839,3.04447957,82.806,82.761,0.03]
[1647008452038,18.1227,82.8,82.761,0.03]
[1647008452240,120.8,82.799,82.761,0.03]
[1647008452641,120.8,82.797,82.761,0.03]
[1647008453441,18.1225,82.79,82.761,0.03]
[1647008454742,18.1225,82.79,82.73,45.76481395]
[1647008455174,18.1225,82.79,82.731,27.64341395]
[1647008457748,120.8,82.797,82.731,27.64341395]
[1647008459645,120.8,82.797,82.73,18.1214]
[1647008459849,18.1225,82.79,82.731,0.03]
[1647008462450,120.8,82.789,82.731,0.03]
[1647008463276,120.8,82.787,82.731,0.03]
[1647008463677,23.3377,82.788,82.731,0.03]
[1647008465180,23.3377,82.788,82.732,27.64341395]
[1647008466485,23.3377,82.788,82.733,33.91182096]
[1647008466685,1.62099687,82.828,82.733,33.91182096]
[1647008466888,1.62099687,82.84,82.734,55.55523491]
[1647008467082,120.8,82.839,82.736,50.70440441]
[1647008467282,1.62099687,82.838,82.737,6.0]
[1647008467484,18.1152,82.82,82.737,9.04447957]
[1647008467682,18.1152,82.82,82.737,36.68789352]
[1647008467882,18.1152,82.82,82.738,30.68789352]
[1647008468182,18.1152,82.82,82.76,18.115]
[1647008468385,18.1152,82.82,82.761,55.76766663]
[1647008469585,18.1152,82.82,82.77,18.1142]
[1647008470887,18.1135,82.83,82.77,18.1142]
[1647008471293,23.5694,82.829,82.77,18.1142]
[1647008471990,120.8,82.828,82.77,18.1142]
[1647008472187,18.1151,82.82,82.77,18.1142]
[1647008473188,23.5694,82.829,82.77,18.1142]
[1647008474692,120.8,82.828,82.761,55.76766663]
[1647008475391,120.8,82.828,82.77,0.03]
[1647008475590,18.1153,82.82,82.77,0.03]
[1647008475991,24.9322,82.819,82.77,0.03]
[1647008476794,24.9322,82.819,82.77,18.1443]
[1647008476991,18.1172,82.81,82.77,0.03]
[1647008477195,120.8,82.809,82.77,0.03]
[1647008478092,120.8,82.799,82.77,0.03]
[1647008478691,60.4061,82.81,82.77,0.03]
[1647008478893,120.8,82.808,82.77,0.03]
[1647008479295,18.1207,82.8,82.77,0.03]
[1647008479895,24.9366,82.799,82.77,0.03]
[1647008480497,24.9366,82.799,82.741,6.0]
[1647008480498,18.121,82.79,82.741,6.0]
[1647008480900,18.121,82.79,82.738,6.0]
[1647008481298,18.121,82.79,82.732,6.0]
[1647008481700,24.9366,82.789,82.732,6.0]
[1647008482599,18.1232,82.78,82.732,6.0]
[1647008482804,24.9366,82.789,82.732,6.0]
[1647008484705,24.9366,82.789,82.731,6.0]
[1647008485307,24.9366,82.789,82.732,51.56177344]
[1647008485506,24.9366,82.789,82.733,6.0]
[1647008488408,145.7366,82.789,82.733,6.0]
[1647008488608,145.7366,82.789,82.732,0.03]
[1647008488609,18.1234,82.78,82.732,0.03]
[1647008490133,145.7366,82.789,82.732,0.03]
[1647008492431,24.9366,82.789,82.732,0.03]
[1647008493631,24.9366,82.789,82.733,29.9909871]
[1647008493833,24.9366,82.789,82.734,6.0]
[1647008494034,24.9366,82.789,82.734,35.9909871]
[1647008494232,24.9366,82.789,82.735,3.04447957]
[1647008494432,24.9366,82.789,82.736,6.0]
[1647008496636,24.9366,82.789,82.736,32.94650753]
[1647008501040,24.9366,82.789,82.736,32.97650753]
[1647008506254,24.9366,82.789,82.737,27.91182096]
[1647008506458,1.62099687,82.809,82.738,6.0]
[1647008506655,1.62099687,82.809,82.738,84.53412849]
[1647008506859,1.62099687,82.81,82.739,29.9909871]
[1647008507055,1.29917614,82.807,82.76,18.116]
[1647008507255,23.1422,82.817,82.76,18.116]
[1647008508387,23.1422,82.817,82.761,29.9909871]
[1647008508592,23.1422,82.817,82.77,18.1078]
[1647008509185,23.1422,82.817,82.756,64.74308126]
[1647008509186,18.1167,82.81,82.756,64.74308126]
[1647008509787,18.1167,82.81,82.751,23.6758]
[1647008509986,18.1167,82.81,82.752,6.0]
[1647008510787,23.1422,82.817,82.76,18.117]
[1647008511085,23.1422,82.817,82.761,6.0]
[1647008511688,18.1166,82.81,82.761,6.0]
[1647008512286,120.8,82.809,82.76,0.03]
[1647008512988,120.8,82.809,82.76,18.1471]
[1647008513186,23.1422,82.817,82.761,6.0]
[1647008513587,120.8,82.816,82.76,0.03]
[1647008514589,120.8,82.809,82.76,0.03]
[1647008515990,138.9219,82.8,82.76,0.03]
[1647008516192,23.6745,82.799,82.761,0.03]
[1647008517890,120.8,82.798,82.761,0.03]
[1647008518691,138.9213,82.79,82.761,0.03]
[1647008519194,120.8,82.788,82.761,0.03]
[1647008519391,127.41,82.788,82.761,0.03]
[1647008519593,120.8,82.779,82.761,0.03]
[1647008519994,120.8,82.777,82.761,0.03]
[1647008521393,18.1288,82.76,82.708,0.03]
[1647008521598,23.1679,82.759,82.708,0.03]
[1647008521791,23.1679,82.759,82.709,26.94650753]
[1647008524296,23.1679,82.759,82.708,0.03]
[1647008524494,18.1302,82.75,82.708,0.03]
[1647008524693,24.9664,82.749,82.708,0.03]
[1647008525595,24.9664,82.749,82.71,18.128]
[1647008525894,24.9664,82.749,82.711,26.94650753]
[1647008526296,6.61,82.788,82.711,26.94650753]
[1647008526496,24.2096,82.787,82.711,26.94650753]
[1647008526695,24.2096,82.787,82.72,18.1257]
[1647008526899,24.2096,82.787,82.721,60.95296177]
[1647008527095,24.2096,82.787,82.721,112.76681069]
[1647008527295,24.2096,82.787,82.722,24.86734139]
[1647008527496,24.2096,82.787,82.723,6.0]
[1647008527697,24.2096,82.787,82.723,32.94650753]
[1647008527895,24.2096,82.787,82.724,51.81384892]
[1647008528095,24.2096,82.787,82.725,6.0]
[1647008528296,24.2096,82.787,82.725,32.94650753]
[1647008528696,24.2096,82.787,82.726,26.94650753]
[1647008528899,24.2096,82.787,82.727,6.0]
[1647008529505,24.2096,82.787,82.727,32.94650753]
[1647008530305,24.2096,82.787,82.727,57.81384892]
[1647008531104,24.2096,82.787,82.727,32.94650753]
[1647008531306,87.0489,82.8,82.727,32.94650753]
[1647008531706,87.0489,82.8,82.727,32.97650753]
[1647008532810,22.6977,82.799,82.727,32.97650753]
[1647008535530,22.6977,82.799,82.728,24.86734139]
[1647008535731,22.6977,82.799,82.729,6.0]
[1647008535932,22.6977,82.799,82.729,32.94650753]
[1647008536130,22.6977,82.799,82.73,26.94650753]
[1647008536331,22.6977,82.799,82.731,6.0]
[1647008538235,22.6977,82.799,82.731,30.70513419]
[1647008538841,68.93,82.8,82.731,30.70513419]
[1647008539040,68.93,82.8,82.75,18.1082]
[1647008539239,68.93,82.8,82.732,162.060414]
[1647008539240,68.93,82.8,82.76,14.42]
[1647008539641,68.93,82.8,82.761,6.0]
[1647008539840,68.93,82.8,82.761,72.22554819]
[1647008540039,68.93,82.8,82.762,41.3582068]